fUSD/lending_fUSD_20240212
["ID","MTS","AMOUNT","RATE_DAILY","PERIOD"]
[313817233,1707735091225,-500.0,0.00024324,2]
[313817234,1707735091235,-500.0,0.00024324,2]
[313817235,1707735091245,-4603.61,0.00024324,2]
[313817236,1707735091255,-500.0,0.00024324,2]
[313817237,1707735091266,-939.6,0.00024324,2]
[313817238,1707735091276,-500.0,0.00024324,2]
[313817239,1707735091285,-500.0,0.00024324,2]
[313817240,1707735091295,-911.93,0.00024324,2]
[313817241,1707735091305,-500.0,0.00024324,2]
[313817242,1707735091315,-1543.06,0.00024324,2]
[313817243,1707735091324,-793.68,0.00024324,2]
[313817244,1707735091334,-659.79,0.00024324,2]
[313817245,1707735091344,-500.0,0.00024324,2]
[313817246,1707735091354,-500.0,0.00024324,2]
[313817247,1707735091363,-2800.78,0.00024324,2]
[313817248,1707735091373,-648.10988171,0.00024324,2]
[313817249,1707735091383,-500.0,0.00024324,2]
[313817250,1707735091392,-500.0,0.00024324,2]
[313817251,1707735091402,-607.76,0.00024324,2]
[313817252,1707735091412,-703.75,0.00024324,2]
[313817253,1707735091422,-500.0,0.00024324,2]
[313817254,1707735091431,-612.44,0.00024324,2]
[313817255,1707735091441,-500.0,0.00024324,2]
[313817256,1707735091452,-540.31,0.00024324,2]
[313817257,1707735091463,-500.0,0.00024324,2]
[313817258,1707735091473,-597.88,0.00024324,2]
[313817259,1707735091483,-499.999999,0.00024324,2]
[313817260,1707735091493,-500.0,0.00024324,2]
[313817261,1707735091504,-703.76,0.00024324,2]
[313817262,1707735091513,-500.0,0.00024324,2]
[313817263,1707735091523,-500.0,0.00024324,2]
[313817264,1707735091534,-605.58,0.00024324,2]
[313817265,1707735091544,-500.0,0.00024324,2]
[313817266,1707735091554,-990.95,0.00024324,2]
[313817267,1707735091564,-556.38,0.00024324,2]
[313817268,1707735091573,-713.73,0.00024324,2]
[313817269,1707735091584,-500.0,0.00024324,2]
[313817270,1707735091593,-500.0,0.00024324,2]
[313817271,1707735091603,-500.0,0.00024324,2]
[313817272,1707735091612,-762.09,0.00024324,2]
[313817273,1707735091623,-500.0,0.00024324,2]
[313817274,1707735091632,-1678.01,0.00024324,2]
[313817275,1707735091642,-731.06,0.00024324,2]
[313817276,1707735091652,-612.73,0.00024324,2]
[313817277,1707735091662,-2458.08,0.00024324,2]
[313817278,1707735091673,-500.0,0.00024324,2]
[313817279,1707735091683,-500.0,0.00024324,2]
[313817280,1707735091693,-500.0,0.00024324,2]
[313817281,1707735091702,-500.0,0.00024325,2]
[313817282,1707735091712,-500.0,0.00024325,2]
[313817283,1707735091722,-500.0,0.00024325,2]
[313817284,1707735091731,-500.0,0.00024325,2]
[313817285,1707735091741,-500.0,0.00024325,2]
[313817286,1707735091750,-500.0,0.00024325,2]
[313817287,1707735091760,-500.0,0.00024325,2]
[313817288,1707735091770,-7939.7,0.00024384,2]
[313817289,1707735091780,-2335.604,0.00024391,2]
[313817290,1707735091789,-19827.0,0.00024391,2]
[313817291,1707735091799,-7409.0,0.00024391,2]
[313817292,1707735091809,-150.0,0.00024391,2]
[313817293,1707735091818,-2428.53,0.00024391,2]
[313817294,1707735091828,-2287.0,0.00024391,2]
[313817295,1707735091838,-2943.578,0.00024391,2]
[313817296,1707735091848,-8156.0,0.00024391,2]
[313817297,1707735091858,-4206.0,0.00024391,2]
[313817298,1707735091867,-151.4,0.00024391,2]
[313817299,1707735091877,-150.0,0.00024391,2]
[313817300,1707735091887,-150.0,0.00024391,2]
[313817301,1707735091896,-151.456,0.00024391,2]
[313817302,1707735091906,-150.638,0.00024391,2]
[313817303,1707735091916,-1036.0,0.00024391,2]
[313817304,1707735091925,-152.011,0.00024391,2]
[313817305,1707735091935,-210.125,0.00024391,2]
[313817306,1707735091945,-151.609,0.00024391,2]
[313817307,1707735091955,-181.744,0.00024391,2]
[313817308,1707735091965,-150.0,0.00024391,2]
[313817309,1707735091975,-205.907,0.00024391,2]
[313817310,1707735091985,-182.66,0.00024452,2]
[313817311,1707735091994,-6304.42376575,0.00024514,2]
[313817312,1707735092004,-500.0,0.00024596,2]
[313817313,1707735092014,-500.0,0.00024596,2]
[313817314,1707735092024,-579.33,0.00024596,2]
[313817315,1707735092034,-2304.48,0.00024596,2]
[313817316,1707735092043,-500.0,0.00024596,2]
[313817317,1707735092053,-6366.64,0.00024596,2]
[313817318,1707735092063,-2086.18,0.00024596,2]
[313817319,1707735092072,-862.58,0.00024596,2]
[313817320,1707735092082,-1948.16,0.00024596,2]
[313817321,1707735092092,-673.35,0.00024596,2]
[313817322,1707735092102,-500.0,0.00024596,2]
[313817323,1707735092111,-526.84,0.00024596,2]
[313817324,1707735092121,-1740.03,0.00024596,2]
[313817325,1707735092131,-973.64,0.00024596,2]
[313817326,1707735092141,-6745.22,0.00024596,2]
[313817327,1707735092152,-509.25,0.00024596,2]
[313817328,1707735092162,-500.0,0.00024596,2]
[313817329,1707735092172,-500.0,0.00024596,2]
[313817330,1707735092182,-500.0,0.00024596,2]
[313817331,1707735092193,-505.12,0.00024596,2]
[313817332,1707735092203,-500.0,0.00024596,2]
[313817333,1707735092214,-150.0,0.00024596,2]
[313817334,1707735092225,-150.0,0.00024596,2]
[313817335,1707735092236,-1092.67,0.00024596,2]
[313817336,1707735092247,-2684.85,0.00024596,2]
[313817337,1707735092258,-500.0,0.00024596,2]
[313817338,1707735092268,-529.57,0.00024596,2]
[313817339,1707735092279,-602.36,0.00024596,2]
[313817340,1707735092289,-864.29,0.00024596,2]
[313817341,1707735092300,-500.0,0.00024596,2]
[313817342,1707735092310,-500.0,0.00024596,2]
[313817343,1707735092321,-500.0,0.00024597,2]
[313817344,1707735092332,-500.0,0.00024597,2]
[313817345,1707735092342,-500.0,0.00024597,2]
[313817346,1707735092352,-500.0,0.00024597,2]
[313817347,1707735092363,-276.88231891,0.00024597,2]
[313817348,1707735092373,-548.4,0.00024597,2]
[313817349,1707735092383,-500.0,0.00024597,2]
[313817350,1707735092393,-500.0,0.00024597,2]
[313817351,1707735092403,-500.0,0.00024597,2]
[313817352,1707735092413,-500.0,0.00024597,2]
[313817353,1707735092424,-500.0,0.00024597,2]
[313817354,1707735092433,-677.22,0.00024597,2]
[313817355,1707735092443,-544.02,0.00024597,2]
[313817356,1707735092454,-500.0,0.00024597,2]
[313817357,1707735092464,-500.0,0.00024597,2]
[313817358,1707735092474,-500.0,0.00024597,2]
[313817359,1707735092484,-500.0,0.00024597,2]
[313817360,1707735092495,-559.07,0.00024597,2]
[313817361,1707735092505,-500.0,0.00024597,7]
[313817362,1707735092514,-543.92,0.00024597,2]
[313817363,1707735092525,-570.54,0.00024597,2]
[313817364,1707735092536,-536.03,0.00024597,2]
[313817365,1707735092546,-500.0,0.00024597,2]
[313817366,1707735092556,-500.0,0.00024597,2]
[313817367,1707735092566,-533.07,0.00024597,2]
[313817368,1707735092576,-574.77,0.00024597,2]
[313817369,1707735092586,-500.0,0.00024597,2]
[313817370,1707735092595,-500.0,0.00024597,2]
[313817371,1707735092605,-871.23,0.00024597,2]
[313817372,1707735092615,-500.0,0.00024597,2]
[313817373,1707735092625,-643.11,0.00024597,2]
[313817374,1707735092635,-952.45,0.00024597,2]
[313817375,1707735092645,-500.0,0.00024597,2]
[313817376,1707735092655,-706.8,0.00024597,2]
[313817377,1707735092665,-972.12,0.00024597,2]
[313817378,1707735092675,-740.12,0.00024597,2]
[313817379,1707735092685,-768.67,0.00024597,2]
[313817380,1707735092696,-507.83,0.00024597,2]
[313817381,1707735092706,-653.17,0.00024597,2]
[313817382,1707735092717,-882.98,0.00024597,2]
[313817383,1707735092727,-500.0,0.00024597,2]
[313817384,1707735092739,-515.82,0.00024597,2]
[313817385,1707735092750,-500.0,0.00024597,2]
[313817386,1707735092760,-500.0,0.00024597,2]
[313817387,1707735092770,-500.0,0.00024597,2]
[313817388,1707735092781,-500.0,0.00024597,2]
[313817389,1707735092791,-500.0,0.00024597,2]
[313817390,1707735092802,-150.0,0.00024597,2]
[313817391,1707735092812,-228.60067828,0.00024597,2]
[313817392,1707735092822,-500.0,0.00024597,2]
[313817393,1707735092832,-4432.79,0.00024597,2]
[313817394,1707735092843,-500.0,0.00024597,2]
[313817395,1707735092854,-261.21,0.00024597,2]
[313817396,1707735092864,-248.92,0.00024597,2]
[313817397,1707735092874,-2834.27,0.00024597,2]
[313817398,1707735092885,-552.93,0.00024597,2]
[313817399,1707735092894,-1272.24,0.00024597,2]
[313817400,1707735092905,-500.0,0.00024597,2]
[313817401,1707735092915,-500.0,0.00024597,2]
[313817402,1707735092925,-519.45,0.00024597,2]
[313817403,1707735092936,-500.0,0.00024597,2]
[313817404,1707735092946,-500.0,0.00024597,2]
[313817405,1707735092957,-500.0,0.00024597,2]
[313817406,1707735092968,-500.0,0.00024597,2]
[313817407,1707735092979,-5024.21,0.00024597,2]
[313817408,1707735092990,-500.0,0.00024597,2]
[313817409,1707735093000,-296.4,0.00024597,2]
[313817410,1707735093010,-4933.54,0.00024597,2]
[313817411,1707735093021,-500.0,0.00024597,2]
[313817412,1707735093032,-555.59,0.00024597,2]
[313817413,1707735093042,-2897.97,0.00024597,2]
[313817414,1707735093052,-6201.98,0.00024597,2]
[313817415,1707735093063,-500.0,0.00024597,2]
[313817416,1707735093073,-2371.51,0.00024597,2]
[313817417,1707735093084,-173.67507953,0.00024597,2]
[313817418,1707735093095,-500.0,0.00024597,2]
[313817419,1707735093106,-3045.48,0.00024597,2]
[313817420,1707735093117,-500.0,0.00024597,2]
[313817421,1707735093128,-1547.39,0.00024597,2]
[313817422,1707735093138,-846.31,0.00024597,2]
[313817423,1707735093149,-4097.96,0.00024597,2]
[313817424,1707735093159,-8400.87,0.00024597,2]
[313817425,1707735093170,-500.0,0.00024597,2]
[313817426,1707735093182,-973.53,0.00024597,2]
[313817427,1707735093192,-504.62,0.00024597,2]
[313817428,1707735093203,-500.0,0.00024597,2]
[313817429,1707735093214,-2007.99,0.00024597,2]
[313817430,1707735093225,-1445.04,0.00024597,2]
[313817431,1707735093235,-2108.56,0.00024597,2]
[313817432,1707735093246,-500.0,0.00024597,2]
[313817433,1707735093255,-778.83,0.00024597,2]
[313817434,1707735093266,-500.0,0.00024597,2]
[313817435,1707735093277,-500.0,0.00024597,2]
[313817436,1707735093289,-500.0,0.00024597,2]
[313817437,1707735093305,-751.46,0.00024597,2]
[313817438,1707735093316,-678.75,0.00024597,2]
[313817439,1707735093326,-182.14161872,0.00024597,2]
[313817440,1707735093336,-698.3,0.00024597,2]
[313817441,1707735093347,-500.0,0.00024597,2]
[313817442,1707735093357,-552.16,0.00024597,2]
[313817443,1707735093368,-500.0,0.00024597,2]
[313817444,1707735093378,-500.0,0.00024597,2]
[313817445,1707735093389,-500.0,0.00024597,2]
[313817446,1707735093400,-2405.45,0.00024597,2]
[313817447,1707735093411,-500.0,0.00024597,2]
[313817448,1707735093421,-500.0,0.00024597,2]
[313817449,1707735093432,-2942.77,0.00024597,2]
[313817450,1707735093442,-4101.5,0.00024597,2]
[313817451,1707735093455,-199.17578482,0.00024597,2]
[313817452,1707735093465,-500.0,0.00024597,2]
[313817453,1707735093476,-20031.68,0.00024597,2]
[313817454,1707735093486,-500.0,0.00024597,2]
[313817455,1707735093498,-5982.13,0.00024597,2]
[313817456,1707735093509,-2670.94,0.00024597,2]
[313817457,1707735093520,-500.0,0.00024597,2]
[313817458,1707735093531,-242.2054382,0.00024597,2]
[313817459,1707735093542,-500.0,0.00024597,2]
[313817460,1707735093553,-2470.01,0.00024597,2]
[313817461,1707735093564,-233.35034615,0.00024597,2]
[313817462,1707735093574,-1147.39,0.00024597,2]
[313817463,1707735093584,-500.0,0.00024597,2]
[313817464,1707735093594,-512.26,0.00024597,2]
[313817465,1707735093604,-689.37,0.00024597,2]
[313817466,1707735093615,-528.76,0.00024597,2]
[313817467,1707735093624,-710.54,0.00024597,2]
[313817468,1707735093634,-500.0,0.00024597,2]
[313817469,1707735093644,-7132.65,0.00024597,2]
[313817470,1707735093653,-1207.55,0.00024597,2]
[313817471,1707735093664,-1690.53,0.00024597,2]
[313817472,1707735093674,-500.0,0.00024597,2]
[313817473,1707735093684,-461.65567826,0.00024597,2]
[313817474,1707735093694,-767.62,0.00024597,2]
[313817475,1707735093705,-768.44,0.00024597,2]
[313817476,1707735093715,-2328.9,0.00024597,2]
[313817477,1707735093726,-6830.87,0.00024597,2]
[313817478,1707735093910,-581.45,0.00024597,2]
[313817479,1707735093928,-547.97,0.00024597,2]
[313817480,1707735093938,-550.33,0.00024597,2]
[313817481,1707735093947,-500.0,0.00024597,2]
[313817482,1707735093958,-2234.17,0.00024597,2]
[313817483,1707735093968,-1353.61,0.00024597,2]
[313817484,1707735093977,-589.69,0.00024597,2]
[313817485,1707735093987,-500.0,0.00024597,2]
[313817486,1707735093997,-1145.24,0.00024597,2]
[313817487,1707735094007,-1751.56,0.00024597,2]
[313817488,1707735094017,-996.07,0.00024597,2]
[313817489,1707735094027,-727.06,0.00024597,2]
[313817490,1707735094037,-500.0,0.00024597,2]
[313817491,1707735094047,-1151.45,0.00024597,2]
[313817492,1707735094058,-500.0,0.00024597,2]
[313817493,1707735094069,-1447.65,0.00024597,2]
[313817494,1707735094079,-500.0,0.00024597,2]
[313817495,1707735094090,-2805.58,0.00024597,2]
[313817496,1707735094100,-1232.65,0.00024597,2]
[313817497,1707735094110,-500.0,0.00024597,2]
[313817498,1707735094120,-500.0,0.00024597,2]
[313817499,1707735094131,-500.0,0.00024597,2]
[313817500,1707735094141,-843.89,0.00024597,2]
[313817501,1707735094152,-1190.91,0.00024597,2]
[313817502,1707735094163,-500.0,0.00024597,2]
[313817503,1707735094173,-9748.41,0.00024597,2]
[313817504,1707735094183,-899.12,0.00024597,2]
[313817505,1707735094194,-2215.09,0.00024597,2]
[313817506,1707735094204,-620.29,0.00024597,2]
[313817507,1707735094215,-500.0,0.00024597,2]
[313817508,1707735094226,-500.0,0.00024597,2]
[313817509,1707735094236,-600.94,0.00024597,2]
[313817510,1707735094246,-500.0,0.00024597,2]
[313817511,1707735094256,-879.84,0.00024597,2]
[313817512,1707735094266,-572.36,0.00024597,2]
[313817513,1707735094276,-500.0,0.00024597,2]
[313817514,1707735094286,-500.0,0.00024597,2]
[313817515,1707735094296,-2783.52,0.00024597,2]
[313817516,1707735094305,-690.15,0.00024597,2]
[313817517,1707735094316,-910.37,0.00024597,2]
[313817518,1707735094326,-960.48,0.00024597,2]
[313817519,1707735094335,-588.11,0.00024597,2]
[313817520,1707735094345,-767.89,0.00024597,2]
[313817521,1707735094355,-500.0,0.00024597,2]
[313817522,1707735094366,-500.0,0.00024597,2]
[313817523,1707735094376,-788.8,0.00024597,2]
[313817524,1707735094386,-2092.79,0.00024597,2]
[313817525,1707735094395,-921.9,0.00024597,2]
[313817526,1707735094404,-2812.9,0.00024597,2]
[313817527,1707735094414,-500.0,0.00024598,2]
[313817528,1707735094423,-500.0,0.00024598,2]
[313817529,1707735094432,-500.0,0.00024598,2]
[313817530,1707735094441,-500.0,0.00024598,2]
[313817531,1707735094453,-500.0,0.00024598,2]
[313817532,1707735094463,-500.0,0.00024598,2]
[313817533,1707735094473,-500.0,0.00024598,2]
[313817534,1707735094482,-500.0,0.00024598,2]
[313817535,1707735094492,-500.0,0.00024598,2]
[313817536,1707735094502,-500.0,0.00024598,2]
[313817537,1707735094511,-500.0,0.00024598,2]
[313817538,1707735094520,-500.0,0.00024598,2]
[313817539,1707735094530,-564.35,0.00024598,2]
[313817540,1707735094540,-939.38,0.00024598,2]
[313817541,1707735094550,-500.0,0.00024598,2]
[313817542,1707735094559,-446.24,0.00024598,2]
[313817543,1707735094568,-500.0,0.00024598,2]
[313817544,1707735094577,-500.0,0.00024598,2]
[313817545,1707735094587,-615.97,0.00024598,2]
[313817546,1707735094596,-629.49,0.00024598,2]
[313817547,1707735094606,-808.34,0.00024598,2]
[313817548,1707735094615,-500.0,0.00024598,2]
[313817549,1707735094624,-500.0,0.00024598,2]
[313817550,1707735094634,-500.0,0.00024598,2]
[313817551,1707735094644,-500.0,0.00024598,2]
[313817552,1707735094654,-500.0,0.00024598,2]
[313817553,1707735094663,-500.0,0.00024598,2]
[313817554,1707735094673,-500.0,0.00024598,2]
[313817555,1707735094683,-500.0,0.00024598,2]
[313817556,1707735094693,-500.0,0.00024598,2]
[313817557,1707735094703,-500.0,0.00024598,2]
[313817558,1707735094713,-500.0,0.00024598,2]
[313817559,1707735094723,-295.60570876,0.00024598,2]
[313817560,1707735094733,-500.0,0.00024598,2]
[313817561,1707735094743,-500.0,0.00024598,2]
[313817562,1707735094755,-269.56773837,0.00024598,2]
[313817563,1707735094769,-509.14,0.00024598,2]
[313817564,1707735094779,-500.0,0.00024598,2]
[313817565,1707735094792,-783.3,0.00024598,2]
[313817566,1707735094831,-500.0,0.00024598,2]
[313817567,1707735094841,-707.32,0.00024598,2]
[313817568,1707735094850,-500.0,0.00024598,2]
[313817569,1707735094861,-500.0,0.00024598,2]
[313817570,1707735094871,-500.0,0.00024598,2]
[313817571,1707735094881,-500.0,0.00024598,2]
[313817572,1707735094891,-500.0,0.00024598,2]
[313817573,1707735094901,-618.89,0.00024598,2]
[313817574,1707735094911,-500.0,0.00024598,2]
[313817575,1707735094922,-500.0,0.00024598,2]
[313817576,1707735094932,-500.0,0.00024598,2]
[313817577,1707735094941,-500.0,0.00024598,2]
[313817578,1707735094951,-500.0,0.00024598,2]
[313817579,1707735094961,-2711.38,0.00024598,2]
[313817580,1707735094971,-500.0,0.00024598,2]
[313817581,1707735094982,-1469.44,0.00024598,2]
[313817582,1707735094992,-681.86,0.00024598,2]
[313817583,1707735095002,-500.0,0.00024598,2]
[313817584,1707735095012,-537.01,0.00024598,2]
[313817585,1707735095022,-2252.02,0.00024598,2]
[313817586,1707735095033,-688.56,0.00024598,2]
[313817587,1707735095043,-500.0,0.00024598,2]
[313817588,1707735095054,-500.0,0.00024598,2]
[313817589,1707735095064,-500.0,0.00024598,2]
[313817590,1707735095074,-500.0,0.00024598,2]
[313817591,1707735095084,-500.0,0.00024598,2]
[313817592,1707735095095,-500.0,0.00024598,2]
[313817593,1707735095104,-500.0,0.00024598,2]
[313817594,1707735095114,-1838.36,0.00024598,2]
[313817595,1707735095125,-500.0,0.00024598,2]
[313817596,1707735095136,-500.0,0.00024598,2]
[313817597,1707735095147,-420.54434101,0.00024598,2]
[313817598,1707735095157,-500.0,0.00024598,2]
[313817599,1707735095168,-500.0,0.00024598,2]
[313817600,1707735095178,-500.0,0.00024598,2]
[313817601,1707735095189,-500.0,0.00024598,2]
[313817602,1707735095199,-500.0,0.00024598,2]
[313817603,1707735095210,-653.74,0.00024598,2]
[313817604,1707735095220,-500.0,0.00024598,2]
[313817605,1707735095231,-500.0,0.00024598,2]
[313817606,1707735095241,-500.0,0.00024598,2]
[313817607,1707735095252,-4603.61,0.00024598,2]
[313817608,1707735095263,-500.0,0.00024598,2]
[313817609,1707735095273,-939.6,0.00024598,2]
[313817610,1707735095285,-500.0,0.00024598,2]
[313817611,1707735095296,-500.0,0.00024598,2]
[313817612,1707735095307,-911.93,0.00024598,2]
[313817613,1707735095318,-500.0,0.00024598,2]
[313817614,1707735095329,-1543.06,0.00024598,2]
[313817615,1707735095339,-793.68,0.00024598,2]
[313817616,1707735095349,-659.79,0.00024598,2]
[313817617,1707735095359,-500.0,0.00024598,2]
[313817618,1707735095369,-500.0,0.00024598,2]
[313817619,1707735095380,-2800.78,0.00024598,2]
[313817620,1707735095390,-500.0,0.00024598,2]
[313817621,1707735095400,-500.0,0.00024598,2]
[313817622,1707735095411,-607.76,0.00024598,2]
[313817623,1707735095421,-703.75,0.00024598,2]
[313817624,1707735095432,-500.0,0.00024598,2]
[313817625,1707735095443,-612.44,0.00024598,2]
[313817626,1707735095456,-500.0,0.00024598,2]
[313817627,1707735095466,-540.31,0.00024598,2]
[313817628,1707735095476,-500.0,0.00024598,2]
[313817629,1707735095486,-597.88,0.00024598,2]
[313817630,1707735095498,-500.0,0.00024598,2]
[313817631,1707735095508,-703.76,0.00024598,2]
[313817632,1707735095518,-358.31855507,0.00024598,2]
[313817633,1707735095529,-500.0,0.00024598,2]
[313817634,1707735095539,-605.58,0.00024598,2]
[313817635,1707735095549,-500.0,0.00024598,2]
[313817636,1707735095560,-990.95,0.00024598,2]
[313817637,1707735095570,-556.38,0.00024598,2]
[313817638,1707735095580,-713.73,0.00024598,2]
[313817639,1707735095591,-500.0,0.00024598,2]
[313817640,1707735095602,-500.0,0.00024598,2]
[313817641,1707735095612,-500.0,0.00024598,2]
[313817642,1707735095623,-762.09,0.00024598,2]
[313817643,1707735095633,-500.0,0.00024598,2]
[313817644,1707735095644,-1678.01,0.00024598,2]
[313817645,1707735095654,-731.06,0.00024598,2]
[313817646,1707735095665,-612.73,0.00024598,2]
[313817647,1707735095675,-2458.08,0.00024598,2]
[313817648,1707735095685,-500.0,0.00024598,2]
[313817649,1707735095695,-500.0,0.00024598,2]
[313817650,1707735095706,-500.0,0.00024598,2]
[313817651,1707735095716,-500.0,0.00024599,2]
[313817652,1707735095726,-500.0,0.00024599,2]
[313817653,1707735095737,-500.0,0.00024599,2]
[313817654,1707735095747,-500.0,0.00024599,2]
[313817655,1707735095757,-500.0,0.00024599,2]
[313817656,1707735095767,-500.0,0.00024599,2]
[313817657,1707735095777,-610.10640779,0.00024599,2]
[313817658,1707735095788,-250.0,0.00024658,2]
[313817659,1707735095799,-165.05,0.00024685,2]
[313817660,1707735095810,-174.25,0.000247,2]
[313817661,1707735095820,-1210.4173213,0.00024771,2]
[313817662,1707735095831,-16012.31618105,0.0002479,2]
[313817663,1707735095841,-16012.31618103,0.0002479,2]
[313817664,1707735095852,-49035.06385354,0.00024799,2]
[313817665,1707735095863,-8056.67896743,0.00024799,2]
[313817666,1707735096375,-24659.42957787,0.00024799,2]
[313817667,1707735096389,-772.60300918,0.00024799,2]
[313817668,1707735096402,-15546.35229901,0.00024799,2]
[313817669,1707735096413,-310.71340388,0.00024836,2]
[313817670,1707735096441,-1654.9,0.00023227,2]
[313817671,1707735096452,-215.68659612,0.00024836,2]
[313817672,1707735096465,-500.0,0.0002487,2]
[313817673,1707735096475,-500.0,0.0002487,2]
[313817674,1707735096485,-579.33,0.0002487,2]
[313817675,1707735096495,-753.81660434,0.0002487,2]
[313817676,1707735096509,-1550.66339566,0.0002487,2]
[313817677,1707735096519,-500.0,0.0002487,2]
[313817678,1707735096528,-840.51541048,0.0002487,2]
[313817679,1707735097291,-2784.30408791,0.00022401,2]
[313817680,1707735097302,-597.0,0.00022404,2]
[313817681,1707735097312,-500.0,0.00022404,2]
[313817682,1707735097323,-500.0,0.00022405,2]
[313817683,1707735097333,-500.0,0.00022405,2]
[313817684,1707735097343,-500.0,0.00022678,2]
[313817685,1707735097353,-78.14857811,0.00022679,2]
[313817686,1707735097381,-421.85142189,0.00022679,2]
[313817687,1707735097390,-500.0,0.00022679,2]
[313817688,1707735097400,-322.78287811,0.00022953,2]
[313817689,1707735097417,-177.21712189,0.00022953,2]
[313817690,1707735097428,-500.0,0.00022953,2]
[313817691,1707735097437,-297.86063014,0.00022953,2]
[313817692,1707735098070,-500.0,0.00022404,2]
[313817693,1707735098079,-92.53143083,0.00022404,2]
[313817694,1707735098091,-407.46856917,0.00022404,2]
[313817695,1707735098100,-500.0,0.00022405,2]
[313817696,1707735098109,-35.77655229,0.00022405,2]
[313817697,1707735098121,-464.22344771,0.00022405,2]
[313817698,1707735098130,-500.0,0.00022405,2]
[313817699,1707735098138,-500.0,0.00022405,2]
[313817700,1707735098148,-445.6848015,0.00022405,2]
[313817701,1707735098160,-54.3151985,0.00022405,2]
[313817702,1707735098169,-500.0,0.00022678,2]
[313817703,1707735098178,-497.2318015,0.00022679,2]
[313817704,1707735098189,-2.7681985,0.00022679,2]
[313817705,1707735098199,-500.0,0.00022679,2]
[313817706,1707735098208,-500.0,0.00022679,2]
[313817707,1707735098218,-133.92801412,0.00022679,2]
[313817708,1707735098236,-366.07198588,0.00022679,2]
[313817709,1707735098245,-271.22754513,0.00022679,2]
[313817710,1707735098256,-75.07245487,0.00022679,2]
[313817711,1707735098266,-500.0,0.00022952,2]
[313817712,1707735098276,-202.13936986,0.00022953,2]
[313817713,1707735098285,-60.72284313,0.00023226,2]
[313817714,1707735098297,-331.8082515,0.00023226,2]
[313817715,1707735098331,-500.0,0.00022952,2]
[313817716,1707735098341,-107.46890537,0.00023226,2]
[313817717,1707735098350,-500.0,0.00023227,2]
[313817718,1707735098360,-500.0,0.00023227,2]
[313817719,1707735098369,-171.66,0.00023227,2]
[313817720,1707735098378,-500.0,0.000235,2]
[313817721,1707735098388,-1654.9,0.00023501,2]
[313817722,1707735098397,-500.0,0.00023501,2]
[313817723,1707735098407,-228.68808401,0.00023774,2]
[313817724,1707735098417,-1654.9,0.00023775,2]
[313817725,1707735098426,-500.0,0.00023775,2]
[313817726,1707735098435,-1654.9,0.00024049,2]
[313817727,1707735098445,-500.0,0.00024049,2]
[313817728,1707735098457,-500.0,0.00024322,2]
[313817729,1707735098468,-8672.72,0.00024323,2]
[313817730,1707735098479,-1654.9,0.00024323,2]
[313817731,1707735098490,-500.0,0.00024323,2]
[313817732,1707735098500,-2142.06,0.00024596,2]